[Event "40th Cappelle Open 2024"]
[Site "Cappelle-la-Grande"]
[Date "2024.03.06"]
[Round "6.12"]
[White "Tarhan, Adar"]
[Black "Le Marec, Simon"]
[Result "1/2-1/2"]
[ECO "B33"]
[WhiteElo "2432"]
[BlackElo "2188"]
[Annotator "TA"]
[PlyCount "134"]
[EventDate "2024.03.02"]
[EventType "swiss"]
[EventCountry "FRA"]
[SourceTitle "playchess.com"]
[Source "ChessBase"]
[SourceQuality "1"]
[TimeControl "40/5400+30:1800+30"]

{[%evp 27,134,61,56,-65,-50,-116,-115,-117,-129,-109,-102,-200,-27,-27,-27,-22,20,15,0,-29,-27,-50,-51,-57,-47,-108,-116,-160,-154,-160,-191,-164,-139,-164,-187,-429,-422,-386,-197,-172,-179,-151,-131,-132,-61,-618,-618,-618,-405,-405,-405,-405,-405,-405,-405,-405,-404,-404,-404,-505,-390,-490,-390,-390,-390,-390,-390,-390,-390,-390,-390,-390,-390,-390,-390,-390,-390,-390,-390,-390,-390,-390,0,-390,-390,-390,-390,-390,-390,-390,-390,-390,-390,-390,-390,-390,-390,-390,-390,-390,-390,-390,-390,-390,0,0,0,-8,-8]} 1. e4 {[%emt 0:05:59]} c5 {[%emt 0:00:04]} 2. Nf3 {[%emt 0:00:04]} Nc6 {[%emt 0:00:05]} 3. d4 {[%emt 0:00:06]} cxd4 {[%emt 0:00:07]} 4. Nxd4 {[%emt 0:00:03]} Nf6 {[%emt 0:00:10]} 5. Nc3 {[%emt 0:00:05]} e5 {[%emt 0:00:06]} 6. Ndb5 {[%emt 0:00:06]} d6 {[%emt 0:00:09]} 7. Bg5 {[%emt 0:00:04]} a6 {[%emt 0:00:08]} 8. Bxf6 {[%emt 0:00:16]} gxf6 {[%emt 0:00:08]} 9. Na3 {[%emt 0:00:04]} b5 {[%emt 0:00:13]} 10. Nd5 {[%emt 0:00:04]} Bg7 {[%emt 0:00:21]} 11. Bd3 {[%emt 0:03:39]} Ne7 {[%emt 0:00:37]} 12. Nxe7 {[%emt 0:01:34]} Qxe7 {[%emt 0:00:06]} 13. c4 {[%emt 0:00:34]} f5 {[%emt 0:07:06]} 14. O-O {[%emt 0:05:51]} O-O {[%emt 0:01:56]} 15. exf5 {[%emt 0:03:53]} (15. cxb5 d5 $11) (15. Qh5 $14) 15... e4 $15 {[%emt 0:05:34]} 16. f6 {[%emt 0:00:17]} (16. Re1 $15 Bxf5 (16... Bxb2 17. Bxe4 Ra7 18. Rb1 $16) 17. Qb3) 16... Bxf6 $17 {[%emt 0:01:41]} 17. Re1 {[%emt 0:00:08] Schwarz steht besser.} d5 {[%emt 0:08:10]} (17... Bxb2 $2 18. Bxe4 (18. Rxe4 Qf6 $17) 18... Be6 19. Qh5 $18 (19. Bxa8 Bxa1 20. Qxa1 Rxa8 $18)) 18. cxd5 {[%emt 0:01:09]} Bxb2 {[%emt 0:01:01]} 19. d6 {[%emt 0:05:47]} (19. Nc2 $17 f5 20. Rb1) 19... Qxd6 $2 {[%emt 0:06:53]} ({Günstiger ist} 19... Qf6 $1 $19 {[%cal Oe4d3]} 20. Bxe4 Ra7 21. Nxb5 (21. Qh5 $2 h6 $19) 21... axb5) 20. Bxe4 $11 {[%emt 0:00:04]} Qxd1 {[%emt 0:01:37]} (20... Qxa3 $6 21. Qh5 (21. Bxa8 Bxa1 22. Qxa1 Rd8 $11) (21. Re3 Qc5 $11) 21... f5 (21... h6 22. Qxh6) 22. Bxa8 Bxa1 23. Bd5+ (23. Rxa1 Be6 $11) 23... Kh8 24. Rxa1 $16) 21. Raxd1 {[%emt 0:00:04]} Be6 {[%emt 0:08:57]} 22. Bxa8 {[%emt 0:00:16]} Rxa8 {[%emt 0:00:06]} 23. Re3 {[%emt 0:03:51]} Rc8 {[%emt 0:04:18][%mdl 1024] Schwarz hat Kompensation.} 24. h4 {[%emt 0:08:31]} b4 {[%emt 0:01:52]} (24... Bxa2 25. Rd2 Bxa3 26. Rxa3 $18 (26. Rxa2 b4 $14)) 25. Nb1 {[%emt 0:00:04][%cal Oe3b3]} a5 $36 {[%emt 0:10:42][%mdl 2048] Weiss steht unter Druck.} 26. Re2 {[%emt 0:05:13]} (26. a4 $15) 26... Bf6 $17 {[%emt 0:00:33]} 27. Nd2 {[%emt 0:02:59]} Rc2 $1 {[%emt 0:03:53]} (27... Bxh4 28. Nb3 $11) (27... Bxa2 $2 28. Ne4 b3 29. Nxf6+ $18) 28. Rde1 {[%emt 0:01:53]} Rxa2 {[%emt 0:07:23][%cal Of6c3] ...Bc3! ist eine echte Drohung.} 29. Ne4 {[%emt 0:00:50]} Kg7 $1 {[%emt 0:03:13]} (29... Bxh4 30. Rxa2 Bxa2 31. Nc5 $17) 30. Rxa2 {[%emt 0:05:29]} Bxa2 {[%emt 0:00:08][%mdl 4096] Endspiel. KRN-KB} 31. Nd6 $2 {[%emt 0:02:26]} (31. Nxf6 Kxf6 32. Kh2 b3) (31. Nc5 {war nötig.}) 31... Bc3 $19 {[%emt 0:00:40]} (31... Bxh4 32. Nf5+ Kf6 33. Nxh4 $16) 32. Re3 {[%emt 0:01:03]} Be6 {[%emt 0:05:29]} (32... a4 $142 {Droht stark ...a3.} 33. Nb5 Bf6) 33. Ne4 {[%emt 0:00:46]} Bd4 {[%emt 0:03:04]} 34. Rg3+ {[%emt 0:01:11]} Kf8 {[%emt 0:00:27]} 35. Rd3 {[%emt 0:00:02] [#]} Bb6 {[%emt 0:02:49] Das Läuferpaar ist gut.} (35... Be5 $1 $17 36. Nc5 Ke7) 36. Ng5 $2 {[%emt 0:06:18][%mdl 8192]} (36. Rd6 $15 Bc7 37. Rc6) 36... a4 {[%emt 0:00:51]} 37. Rd6 {[%emt 0:00:44] [#]} a3 $1 {[%emt 0:01:55]} 38. Rxb6 {[%emt 0:00:39]} a2 {[%emt 0:00:10]} 39. Nxe6+ {[%emt 0:00:18]} fxe6 {[%emt 0:00:10] KR-KP} 40. Ra6 {[%emt 0:00:06]} (40. Rxb4 a1=Q+ (40... a1=B $2 41. Rb8+ Ke7 42. Rb7+ Kf8 43. Rxh7 $18) 41. Kh2 Qe1 42. Rf4+ Kg7 43. Rg4+ Kf7 $19) (40. Rb8+ Ke7 41. Ra8 (41. Rxb4 $2 a1=Q+ 42. Kh2 Qe5+ 43. g3 Qe1 $19) 41... b3 $19) 40... b3 {[%emt 0:00:07]} 41. Kh2 {[%emt 0:30:02]} (41. Rxe6 $2 {geht unter.} b2 (41... a1=B $2 42. Rb6 $18) (41... a1=Q+ $2 42. Kh2 $19) 42. Kf1 b1=Q+ $19 (42... b1=R+ $2 43. Re1 $19)) ({Viel schwächer wäre} 41. Ra8+ Ke7 42. Kh2 (42. Ra7+ $2 Kf6 $19) 42... b2 43. Rxa2 b1=Q $19 (43... b1=B $2 44. Ra7+ Kd8 45. Kh3 $18)) 41... b2 {[%emt 0:31:41]} 42. Rxa2 {[%emt 0:00:30]} b1=Q {[%emt 0:01:09] KQ-KR} (42... b1=B $2 {ist das falsche Schlagen.} 43. Ra7 $18) 43. Ra3 {[%emt 0:01:44]} Ke7 {[%emt 0:02:36]} 44. Re3 {[%emt 0:00:58]} Qf1 {[%emt 0:00:35]} 45. Kg3 {[%emt 0:00:14]} Kd6 {[%emt 0:00:48]} 46. Re4 {[%emt 0:03:18]} Kd5 {[%emt 0:01:24]} 47. f3 {[%emt 0:00:53]} Qh1 {[%emt 0:08:06]} 48. Re2 {[%emt 0:00:45]} e5 {[%emt 0:01:44]} 49. Re4 {[%emt 0:02:32]} Qb1 {[%emt 0:00:31]} 50. Ra4 {[%emt 0:01:43]} Qc2 {[%emt 0:00:27]} 51. Rb4 {[%emt 0:00:09]} h5 {[%emt 0:00:00]} 52. Kh3 {[%emt 0:00:00]} Qc8+ {[%emt 0:00:00]} 53. Kg3 {[%emt 0:00:00]} Qf5 {[%emt 0:00:00]} 54. Kh2 {[%emt 0:00:00]} Qc2 $2 {[%emt 0:00:00]} ({Vorzuziehen ist} 54... Qg6 $19 {Und ...Qd6 würde nun gewinnen.} 55. Rb5+ Kd4 56. Rb4+ Kc5) 55. Re4 $2 {[%emt 0:00:00][%mdl 8192]} (55. Kh3 $1 $11 {und Weiss steht sicher.} Qf5+ 56. Kh2) 55... Qb1 {[%emt 0:00:00]} 56. Ra4 {[%emt 0:00:00]} Ke6 {[%emt 0:00:00]} 57. Ra6+ {[%emt 0:00:00]} Kf5 {[%emt 0:00:00]} 58. Ra4 {[%emt 0:00:00]} Qe1 {[%emt 0:00:00]} 59. Re4 {[%emt 0:00:00]} Qd1 {[%emt 0:00:00]} 60. Rb4 {[%emt 0:00:00]} Ke6 {[%emt 0:00:00]} 61. Rc4 {[%emt 0:00:00]} Kd6 {[%emt 0:00:00]} 62. Rb4 {[%emt 0:00:00]} Kd5 {[%emt 0:00:00][%cal Od1d4]} 63. Re4 {[%emt 0:00:00]} Qb3 {[%emt 0:00:00]} 64. Kh3 {[%emt 0:00:00]} Qb1 {[%emt 0:00:00]} 65. Kh2 {[%emt 0:00:00] [#]} Qxe4 $2 {[%emt 0:00:00]} 66. fxe4+ $11 {[%emt 0:00:00]} Kxe4 {[%emt 0:00:00] ( -> ...Kf4)} 67. g4 $1 {[%emt 0:00:00]} hxg4 {[%emt 0:00:00] Gewichteter Fehlerwert: Weiß=0.42/Schwarz=0.32.  Verlustzug:     	Weiß=2     	---        Gewinn verpasst:   	---       	Schwarz=3     Fehler:       	Weiß=4     	Schwarz=2     Ungenau:       	Weiß=2     	Schwarz=1     OK:         	Weiß=16    	Schwarz=20    Bester:       	Weiß=7     	Schwarz=4     Stark:        	Weiß=1     	Schwarz=1} 1/2-1/2

[Event "40th Cappelle Open 2024"]
[Site "Cappelle-la-Grande"]
[Date "2024.03.06"]
[Round "6.13"]
[White "Gopal G.N."]
[Black "Ringuet, Noe"]
[Result "1-0"]
[ECO "B08"]
[WhiteElo "2575"]
[BlackElo "2184"]
[Annotator "TA"]
[PlyCount "45"]
[EventDate "2024.03.02"]
[EventType "swiss"]
[EventCountry "FRA"]
[SourceTitle "playchess.com"]
[Source "ChessBase"]
[SourceQuality "1"]
[TimeControl "40/5400+30:1800+30"]

{[%evp 14,45,35,36,42,32,23,25,33,32,41,27,117,111,109,100,203,193,203,200,450,477,587,650,678,696,714,708,727,722,1345,1433,1297,1279]} 1. e4 {[%emt 0:00:02]} d6 {[%emt 0:04:57]} 2. d4 {[%emt 0:00:07]} Nf6 {[%emt 0:00:06]} 3. Nc3 {[%emt 0:00:04]} g6 {[%emt 0:00:05]} 4. Be3 {[%emt 0:01:00]} c6 {[%emt 0:00:26]} 5. Qd2 {[%emt 0:00:56]} Nbd7 {[%emt 0:00:32]} 6. Nf3 {[%emt 0:02:13]} Bg7 {[%emt 0:02:15]} 7. Bh6 {[%emt 0:24:48]} O-O {[%emt 0:13:11]} 8. O-O-O {[%emt 0:01:27]} Qa5 {[%emt 0:07:55]} 9. h4 {[%emt 0:02:04] [#] Und jetzt Bxg7 wäre schön.} Bxh6 {[%emt 0:00:07]} 10. Qxh6 {[%emt 0:00:04] Und Ng5 würde nun gewinnen.} Ng4 $1 {[%emt 0:00:03][%csl LRf2,LRh6] Weiß hat minimalen Vorteil.} 11. Qd2 {[%emt 0:01:34][%cal Oh4h5]} h5 {[%emt 0:00:10]} 12. Kb1 {[%emt 0:12:09]} e5 {[%emt 0:03:22]} (12... b5 $11 {bleibt in der Remisbreite.}) 13. Ng5 {[%emt 0:07:55]} b5 {[%emt 0:07:57]} 14. f3 {[%emt 0:03:14]} b4 {[%emt 0:02:34] [#]} (14... Ngf6 $16) 15. Nb5 $1 {[%emt 0:03:20][%mdl 512]} cxb5 {[%emt 0:09:08]} 16. fxg4 {[%emt 0:00:04]} Nb6 $2 {[%emt 0:35:49]} (16... Nf6) 17. gxh5 $18 {[%emt 0:04:47] Weiß steht klar auf Gewinn.} Bg4 {[%emt 0:04:47]} 18. hxg6 {[%emt 0:03:33]} fxg6 {[%emt 0:00:33]} 19. dxe5 {[%emt 0:01:19][%cal Od2d6] Schwarz muss nun Qxd6! beachten.} Bxd1 {[%emt 0:02:35]} 20. Qxd1 {[%emt 0:03:10]} ({Weniger gut wäre} 20. exd6 Bg4 21. h5 Rf6 $18) 20... b3 {[%emt 0:01:00]} 21. axb3 {[%emt 0:01:31] h5 wäre nun fies.} ({Schwächer ist} 21. cxb3 dxe5 22. h5 Rad8 $16) 21... dxe5 {[%emt 0:00:04]} 22. h5 {[%emt 0:00:55]} Rad8 {[%emt 0:00:51]} 23. Bd3 {[%emt 0:00:13] Schwarz wurde aus der Eröffnung heraus überspielt.   Gewichteter Fehlerwert: Weiß=0.04 (makellos) /Schwarz=0.55.  Fehler:       	---       	Schwarz=3     OK:         	Weiß=5     	Schwarz=3     Bester:       	Weiß=1     	Schwarz=1} 1-0

[Event "40th Cappelle Open 2024"]
[Site "Cappelle-la-Grande"]
[Date "2024.03.06"]
[Round "6.14"]
[White "Bellahcene, Bilel"]
[Black "Lacan Rus, David"]
[Result "1-0"]
[ECO "B32"]
[WhiteElo "2522"]
[BlackElo "2169"]
[Annotator "TA"]
[PlyCount "85"]
[EventDate "2024.03.02"]
[EventType "swiss"]
[EventCountry "FRA"]
[SourceTitle "playchess.com"]
[Source "ChessBase"]
[SourceQuality "1"]
[TimeControl "40/5400+30:1800+30"]

{[%evp 14,85,21,25,32,22,35,18,44,15,30,0,65,50,72,43,34,34,124,23,20,40,44,50,28,6,0,0,53,44,45,41,52,50,143,137,127,126,151,151,161,104,124,87,94,86,104,116,288,256,241,242,236,242,303,352,318,350,603,343,583,367,985,855,1713,1615,1560,1454,29947,6033,29971,29971,29967,29966]} 1. e4 {[%emt 0:24:32]} c5 {[%emt 0:00:10]} 2. Nf3 {[%emt 0:00:02]} Nc6 {[%emt 0:00:10]} 3. d4 {[%emt 0:00:04]} cxd4 {[%emt 0:00:05]} 4. Nxd4 {[%emt 0:00:02]} e5 {[%emt 0:00:08]} 5. Nb5 {[%emt 0:00:02]} d6 {[%emt 0:00:06]} 6. c4 {[%emt 0:00:23]} Be6 {[%emt 0:00:42]} 7. N1c3 {[%emt 0:01:09]} a6 {[%emt 0:00:10]} 8. Na3 {[%emt 0:00:02]} g6 {[%emt 0:00:17]} 9. Nc2 {[%emt 0:00:16]} Bg7 {[%emt 0:00:15]} 10. Be3 {[%emt 0:00:26]} Nf6 {[%emt 0:01:50] The position is equal.} 11. Be2 {[%emt 0:00:03]} (11. Qd2 {looks sharper.} O-O 12. Rd1 Rc8 13. Qxd6 Nd4 14. Qxd8 Nxc2+ 15. Kd2) 11... Rc8 {[%emt 0:00:05]} 12. Rc1 {[%emt 0:04:46]} Na5 {[%emt 0:07:37]} (12... Ne7 $11) 13. b3 $14 {[%emt 0:03:35][%cal Bb2b3,Bb3b4,Bb4b5][%mdl 32]} b5 {[%emt 0:00:57][%cal Rb5c4] [#]} 14. Nd5 $1 {[%emt 0:01:11]} Bxd5 {[%emt 0:03:50]} (14... bxc4 $2 15. Bb6 Qd7 16. Nxf6+ (16. Bxa5 Bxd5 17. exd5 Rc5 $16) 16... Bxf6 17. Bxa5 $18) 15. exd5 {[%emt 0:00:10]} O-O {[%emt 0:03:19]} (15... bxc4 $14 16. b4 O-O) 16. O-O {[%emt 0:04:42]} (16. cxb5 $16 axb5 17. O-O (17. Bxb5 $2 Nxb3 18. axb3 Qa5+ 19. Ke2 Qxb5+ 20. Qd3 Qxd3+ 21. Kxd3 Nxd5 $19)) 16... bxc4 $11 {[%emt 0:04:07]} 17. b4 $1 {[%emt 0:00:28]} Nb7 {[%emt 0:00:08]} 18. Na3 {[%emt 0:00:12][%mdl 1024] White has compensation.} a5 {[%emt 0:07:19]} 19. b5 $36 {[%emt 0:00:11][%mdl 2048] White has some pressure.} c3 {[%emt 0:01:22]} 20. Nc4 {[%emt 0:01:20][%cal Oc4b6]} Ne4 {[%emt 0:05:26]} (20... Ng4 $11) 21. f3 $14 {[%emt 0:02:33]} Nec5 {[%emt 0:02:02]} 22. Rxc3 {[%emt 0:00:26]} f5 {[%emt 0:02:57][%cal Bf7f5,Bf5f4][%mdl 32]} 23. Rc1 {[%emt 0:06:27]} g5 {[%emt 0:06:16]} (23... Ra8 $14) 24. Kh1 {[%emt 0:01:41] White is more active.} f4 {[%emt 0:10:50]} 25. Bf2 {[%emt 0:00:51]} Rf6 {[%emt 0:02:45]} 26. Nd2 {[%emt 0:00:32]} Rh6 {[%emt 0:07:56]} 27. Ne4 {[%emt 0:01:10]} ({White should play} 27. Qc2 $18) 27... g4 $16 {[%emt 0:01:51]} 28. g3 {[%emt 0:06:23]} Nxe4 {[%emt 0:13:04]} 29. fxe4 {[%emt 0:00:40]} Rxc1 {[%emt 0:01:05]} 30. Qxc1 {[%emt 0:00:10]} Nc5 $2 {[%emt 0:00:35] A mistake that costs the game.} 31. Bxc5 {[%emt 0:09:47]} (31. Bxg4 $6 fxg3 32. Bxg3 (32. Bxc5 Qh4 $15) 32... Nxe4 $18) 31... dxc5 {[%emt 0:01:40]} 32. Bxg4 {[%emt 0:00:09]} fxg3 {[%emt 0:04:22]} 33. h3 {[%emt 0:00:17]} (33. Qxc5 Rxh2+ 34. Kg1 Bh6 $11) 33... Qh4 {[%emt 0:02:31]} 34. Kg2 {[%emt 0:01:45]} Rf6 {[%emt 0:04:17]} 35. Bf5 {[%emt 0:01:14]} (35. Qxc5 Rxf1 36. Kxf1 Bf8 $18) (35. Rxf6 $6 Qxf6 36. Bf5 (36. Qxc5 Qf4 $18) (36. Kxg3 Bh6 $16) 36... Bf8 $18) 35... Bh6 $2 {[%emt 0:01:30]} (35... Kh8 36. Qxc5 Bf8) 36. Qc2 {[%emt 0:01:10][%cal Oc2b2] [#] Hoping for Qb2!} Kg7 $2 {[%emt 0:02:50]} (36... Kh8 37. Qxc5 Qg5) 37. Rf3 {[%emt 0:00:12][%cal Bf1f3,Bf3c3,Bc3c2][%mdl 32]} Bf4 $2 {[%emt 0:00:59]} (37... Kh8 38. Qc3 (38. Qxc5 Bf8 $18) (38. Rxg3 Bf4 $18) 38... Bf8 39. Qxe5 (39. Rxg3 Rf7 $18) (39. Qxa5 c4 $18) 39... Bg7 40. Qxg3 (40. Rxg3 Qh6 $18) (40. Qf4 Qxf4 41. Rxf4 Rb6 $18) 40... Qh6) 38. Qxc5 $18 {[%emt 0:00:37] White wants to mate with Qe7+.} Qh5 {[%emt 0:01:03]} 39. d6 {[%emt 0:02:06][%cal Bd5d6,Bd6d7][%mdl 32] Black must now prevent d7.} Qf7 {[%emt 0:00:23]} 40. Rc3 {[%emt 0:07:11]} Qxa2+ {[%emt 0:01:40]} 41. Rc2 {[%emt 0:30:03]} Qa4 {[%emt 0:05:02] Black is weak on the light squares} 42. Qc7+ {[%emt 0:00:00]} Rf7 {[%emt 0:00:16]} 43. d7 {[%emt 0:00:00] Weighted Error Value: White=0.43/Black=0.82.  Loses game:     	---       	Black=1      Mistake:       	White=2     	Black=7      Inaccurate:     	White=3     	Black=1      OK:         	White=7     	Black=9      Best:        	White=4     	Black=6      Strong:       	White=2     	---} 1-0

[Event "40th Cappelle Open 2024"]
[Site "Cappelle-la-Grande"]
[Date "2024.03.06"]
[Round "6.15"]
[White "Valsecchi, Alessio"]
[Black "Van Houtte, Randy"]
[Result "1-0"]
[ECO "D05"]
[WhiteElo "2490"]
[BlackElo "2152"]
[Annotator "TA"]
[PlyCount "46"]
[EventDate "2024.03.02"]
[EventType "swiss"]
[EventCountry "FRA"]
[SourceTitle "playchess.com"]
[Source "ChessBase"]
[SourceQuality "1"]
[TimeControl "40/5400+30:1800+30"]

{[%evp 9,46,17,16,-7,-2,-9,0,0,-8,0,0,0,29,33,43,50,37,37,41,43,50,44,21,43,28,13,27,0,157,170,161,160,636,610,613,594,533,303,478]} 1. d4 {[%emt 0:06:21]} d5 {[%emt 0:00:16]} 2. Nf3 {[%emt 0:00:17]} Nf6 {[%emt 0:00:16]} 3. e3 {[%emt 0:00:22]} e6 {[%emt 0:00:38]} 4. a3 {[%emt 0:00:58]} Bd6 {[%emt 0:05:46]} 5. c4 {[%emt 0:03:40]} b6 {[%emt 0:04:47]} 6. Nbd2 {[%emt 0:08:00]} O-O {[%emt 0:04:21]} 7. Bd3 {[%emt 0:00:58]} Bb7 {[%emt 0:01:19]} 8. b4 {[%emt 0:05:52] The position is equal.} c5 {[%emt 0:16:40]} 9. bxc5 {[%emt 0:00:53]} bxc5 {[%emt 0:00:06]} 10. Rb1 {[%emt 0:00:14]} Bc6 {[%emt 0:03:48]} 11. cxd5 {[%emt 0:09:46]} exd5 {[%emt 0:03:01]} 12. dxc5 {[%emt 0:00:19]} Bxc5 {[%emt 0:02:24]} 13. Bb2 {[%emt 0:00:48]} Nbd7 {[%emt 0:09:42]} 14. O-O {[%emt 0:03:00]} Qe7 {[%emt 0:06:21]} 15. Nd4 {[%emt 0:11:15]} Bxd4 {[%emt 0:01:21]} 16. Bxd4 {[%emt 0:00:08]} Qxa3 {[%emt 0:02:00]} 17. Nf3 {[%emt 0:00:20][%cal Bd2f3,Bf3h4,Bh4f5,Bf5h6,Bh6g4][%mdl 32]} Qd6 {[%emt 0:02:48]} 18. Nh4 {[%emt 0:01:20][%mdl 1024] [#] And now Nf5 would win. White has compensation.} Rfe8 $2 {[%emt 0:10:17]} (18... g6 $11) 19. Nf5 $16 {[%emt 0:05:56] White is more active.} Qe6 {[%emt 0:00:43]} 20. f4 {[%emt 0:01:17] Against Ne5} g6 $2 {[%emt 0:07:14] Inhibits g4.} (20... a6 $16) 21. Nh6+ $18 {[%emt 0:03:29]} Kg7 {[%emt 0:01:12]} 22. Ng4 {[%emt 0:09:59]} Qd6 {[%emt 0:01:32]} 23. Qc2 {[%emt 0:00:33]} Kg8 {[%emt 0:15:28] Weighted Error Value: White=0.23 (precise) /Black=0.52.  Loses game:     	---       	Black=1      Mistake:       	---       	Black=2      Inaccurate:     	White=1     	Black=1      OK:         	White=6     	Black=7      Best:        	White=2     	---} (23... Rac8 {is a better defense.} 24. Qf2 Kg8) 1-0

[Event "40th Cappelle Open 2024"]
[Site "Cappelle-la-Grande"]
[Date "2024.03.06"]
[Round "6.16"]
[White "Bourquin, Pascal"]
[Black "Girel, Joseph"]
[Result "0-1"]
[ECO "A09"]
[WhiteElo "2243"]
[BlackElo "2486"]
[Annotator "TA"]
[PlyCount "74"]
[EventDate "2024.03.02"]
[EventType "swiss"]
[EventCountry "FRA"]
[SourceTitle "playchess.com"]
[Source "ChessBase"]
[SourceQuality "1"]
[TimeControl "40/5400+30:1800+30"]

{[%evp 9,74,46,26,21,20,-57,-46,-47,-51,-40,0,-10,24,-43,-16,-49,-36,-74,-38,-47,-46,-57,6,-27,-29,-40,-37,-64,-56,-71,-56,-83,-83,-205,-191,-186,-131,-177,-194,-361,-359,-333,-313,-391,-384,-389,-344,-331,-315,-285,-280,-250,-247,-272,-256,-263,-250,-420,-404,-8106,-6629,-8106,-4622,-4622,-4622,-5591,-5114]} 1. Nf3 {[%emt 0:00:03]} d5 {[%emt 0:00:46]} 2. c4 {[%emt 0:04:09]} d4 {[%emt 0:02:44]} 3. b4 {[%emt 0:00:49]} g5 {[%emt 0:03:10]} 4. Bb2 {[%emt 0:10:29]} Bg7 {[%emt 0:01:22]} 5. Nxg5 {[%emt 0:09:21]} e5 {[%emt 0:00:26]} 6. Ne4 {[%emt 0:00:14]} f5 {[%emt 0:02:10]} 7. Ng3 {[%emt 0:12:00]} (7. Nc5 $1 $11) 7... Nf6 $1 $15 {[%emt 0:11:35] Hoping for ...f4.} 8. e4 {[%emt 0:06:13] Black is slightly better.} fxe4 {[%emt 0:04:26]} 9. Be2 {[%emt 0:08:47] Repels h5} O-O {[%emt 0:04:53]} (9... h5 $5) 10. O-O {[%emt 0:00:04]} a5 {[%emt 0:09:06]} 11. d3 {[%emt 0:04:03]} (11. b5 $1 $11) 11... exd3 {[%emt 0:05:23]} 12. Bxd3 {[%emt 0:00:15]} axb4 {[%emt 0:00:19]} 13. Nd2 {[%emt 0:00:12][%cal Bb1d2,Bd2f3,Bf3e5][%mdl 32]} Nbd7 {[%emt 0:02:21]} 14. Nf3 {[%emt 0:06:24]} b6 {[%emt 0:10:27]} 15. Re1 {[%emt 0:03:16][%cal Oa2a3]} Nc5 {[%emt 0:05:59]} (15... Re8 $15) 16. Nxe5 {[%emt 0:01:33]} Nxd3 {[%emt 0:00:05]} 17. Qxd3 {[%emt 0:01:29][%cal Oe5c6] [#] Black must now prevent Nc6!} c5 {[%emt 0:00:20]} 18. Nc6 {[%emt 0:22:45]} Qc7 {[%emt 0:00:31]} 19. Ne7+ {[%emt 0:00:09]} Kh8 {[%emt 0:00:06] Threatens to win with ...Ng4.} 20. Nxc8 {[%emt 0:00:09]} Raxc8 {[%emt 0:00:05]} 21. Re2 {[%emt 0:01:52] Now White is beyond hope.} (21. f3 $17 {is a better defense.}) 21... Ng4 $19 {[%emt 0:01:12]} 22. Rae1 {[%emt 0:00:56]} Qf7 {[%emt 0:04:04]} ({Black should try} 22... Ne5 $19 23. Qc2 Ra8) 23. f3 {[%emt 0:02:59]} (23. Qd2 $17 {keeps fighting.}) 23... Ne3 {[%emt 0:00:22]} 24. Rxe3 $2 {[%emt 0:00:25]} (24. Qb3) 24... dxe3 {[%emt 0:00:09]} 25. Bxg7+ {[%emt 0:00:04]} Qxg7 {[%emt 0:00:21]} 26. Nf5 {[%emt 0:01:19]} Qc3 {[%emt 0:12:39]} 27. Qxc3+ {[%emt 0:00:07]} bxc3 {[%emt 0:00:02]} 28. Nxe3 {[%emt 0:00:06][%mdl 4096] Endgame. KRR-KRN} Rfe8 {[%emt 0:00:41]} 29. Kf2 {[%emt 0:00:06]} Rcd8 {[%emt 0:04:49]} 30. Nd5 {[%emt 0:00:09]} Rxe1 {[%emt 0:02:29]} 31. Kxe1 {[%emt 0:00:04][%cal Oa2a4] [#] KR-KN} b5 {[%emt 0:00:29][%mdl 512] ...c2 would now be deadly.} 32. Nxc3 {[%emt 0:00:12]} bxc4 {[%emt 0:00:37] Strongly threatening ...Rd3.} 33. a4 $2 {[%emt 0:03:23]} (33. Ke2 {was necessary.}) 33... Rd3 {[%emt 0:00:28]} 34. Ne4 {[%emt 0:00:04]} (34. Nb1 $142) 34... c3 {[%emt 0:00:51] ( -> ...c2). Black is clearly winning.} 35. Nxc5 {[%emt 0:00:09]} Rd5 {[%emt 0:00:15]} 36. Nb3 {[%emt 0:00:33]} c2 {[%emt 0:00:10] aiming for ...Rd3.} 37. a5 {[%emt 0:00:46]} Rd3 {[%emt 0:00:15] Weighted Error Value: White=0.74/Black=0.28 (precise) .  Mistake:       	White=7     	Black=2      Inaccurate:     	White=3     	Black=3      OK:         	White=13    	Black=11     Best:        	White=2     	Black=6      Strong:       	---       	Black=1} 0-1